Cogmind - Beta 16 @@@ ROGUE MODE // 2026.01.24 @ 11:01:47 Player: YoKa Result: Destroyed by as-30397 with Assembled Rifle Performance ------------- Evolutions (1) 500 Regions Visited (4) 800 Robots Destroyed (73) 365 Value Destroyed (1704) 1704 Prototype IDs (0) 0 Alien Tech Used (0) 0 Bonus (308) 308 TOTAL SCORE: 3677 Bonus ------- High Alert Combat Kills 144 Follower Combat Kills 164 Cogmind --------- Core Integrity 0/400 Matter 245/300 Energy 62/275 System Corruption 1% Temperature Cool (0) Movement Flying (109) Ox1 Location -9/Mines Parts ------- > --- POWER (1) -------- Deuterium Engine > --- PROPULSION (3) --- VTOL Module VTOL Module VTOL Module > --- UTILITY (3) ------ (None) > --- WEAPON (2) ------- Improved Datajack Heavy Hammer > --- INVENTORY (5) ---- Deuterium Engine VTOL Module VTOL Module Spread Laser Spread Laser Peak State ------------ > --- POWER ------------ Deuterium Engine > --- PROPULSION ------- Light Treads Light Treads Light Treads > --- UTILITY ---------- Improved Heat Sink Large Storage Unit Medium Armor Plating > --- WEAPON ----------- EMP Blaster Heavy Hammer > --- INVENTORY -------- Deuterium Engine Deuterium Engine VTOL Module VTOL Module VTOL Module VTOL Module VTOL Module Hardened Light Armor Plating Datajack Improved Datajack [Rating: 18] Favorites ----------- Power Ion Engine Engine Ion Engine Propulsion Light Treads Treads Light Treads Leg Aluminum Leg Flight Unit VTOL Module Utility Large Storage Unit Device Improved Heat Sink Storage Large Storage Unit Protection Hardened Light Armor Plating Weapon Heavy EM Pulse Gun Energy Gun Heavy EM Pulse Gun Ballistic Gun Assault Rifle Launcher EMP Blaster Impact Weapon Heavy Hammer Special Melee Weapon Improved Datajack Build | -11 -10 -10 -9 -9 ------- Run | Yrd Mat Min Mat Min Slots Evolved 2 | . . . 2 . Power . | . . . . . Propulsion 1 | . . . 1 . Utility 1 | . . . 1 . Weapon . | . . . . . Parts Attached 35 | 8 2 1 18 6 Power 5 | 1 . . 3 1 Engine 5 | 1 . . 3 1 Core . | . . . . . Reactor . | . . . . . Propulsion 12 | 4 . . 5 3 Treads 7 | 2 . . 5 . Leg 2 | 2 . . . . Wheel . | . . . . . Hover . | . . . . . Flight 3 | . . . . 3 Utility 6 | 1 1 . 4 . Device 1 | . . . 1 . Storage 2 | 1 1 . . . Processor . | . . . . . Hackware . | . . . . . Protection 3 | . . . 3 . Artifact . | . . . . . Weapon 12 | 2 1 1 6 2 Energy Gun 5 | . . . 4 1 Energy Cannon . | . . . . . Ballistic Gun 2 | 2 . . . . Ballistic Cannon . | . . . . . Launcher 3 | . 1 1 1 . Special Weapon . | . . . . . Impact Weapon 1 | . . . 1 . Slashing Weapon . | . . . . . Piercing Weapon . | . . . . . Special Melee Weapon 1 | . . . . 1 Unidentified Prototypes . | . . . . . Parts Lost 20 | . . . 12 8 Power 1 | . . . . 1 Propulsion 6 | . . . 3 3 Utility 4 | . . . 2 2 Weapon 9 | . . . 7 2 Highest Loss Streak 8 | . . . 3 8 To Critical Strikes . | . . . . . Average Backups 8 | 4 5 8 9 11 Power 1 | . 1 1 1 2 Propulsion 3 | 1 2 3 4 5 Utility . | . . . 1 . Weapon 2 | 1 2 3 1 3 Tool/Special . | . . . . . Unused Backups 7 | . . . 2 5 Power 1 | . . . . 1 Propulsion 2 | . . . . 2 Utility . | . . . . . Weapon 3 | . . . 1 2 Tool/Special 1 | . . . 1 . Average Slot Usage (%) 94 | . 85 85 96 81 Engine 11 | . 14 14 10 11 Treads 31 | . 28 28 32 23 Device 5 | . . . 6 9 Storage 11 | . 14 14 11 11 Protection 11 | . . . 15 7 Energy Gun 5 | . . . 7 5 Ballistic Gun 6 | . 18 14 3 . Launcher 7 | . 9 14 6 7 Impact Weapon 2 | . . . 3 3 Peak Build Rating 18 | 6 7 8 18 18 Average Rating 13 | 3 6 7 15 15 On Entrance 7 | . 6 6 8 18 Avg Prop Armor Cover (%) 7 | . . . 7 . Naked Turns . | . . . . . Heaviest Build 44 | 13 30 31 44 42 Greatest Support 63 | 40 40 40 63 40 Greatest Overweight (x) 1 | . . . 1 1 Average Overweight (x) . | . . . . 1 Largest Inventory Capacity 15 | 8 15 15 15 15 Average Capacity 14 | 7 12 15 15 14 Most Carried 15 | 6 7 9 15 11 Average Carried 8 | 4 5 8 9 10 Final Capacity 15 | 8 15 15 15 5 Final Carried 11 | 4 7 9 11 5 Class Distribution -------------------- 60% | Mutant 39% | Scavenger-Mutant Dominant Class ---------------- Mutant | -10/Materials Mutant | -10/Mines Scavenger-Mutant | -9/Materials Mutant | -9/Mines Resources | -11 -10 -10 -9 -9 ----------- Run | Yrd Mat Min Mat Min Matter Collected 1538 | 187 225 160 966 . Remotely . | . . . . . Salvage Created 2240 | . 361 6 1819 54 Parts 141 | . 36 1 104 . Haulers Intercepted 6 | . 2 . 4 . Recyclers Shooed 1 | . . . 1 . Parts Field Recycled . | . . . . . Retrieved Matter . | . . . . . Parts Self-Destructed . | . . . . . Prevented . | . . . . . Parts Restored . | . . . . . Kills | -11 -10 -10 -9 -9 ------- Run | Yrd Mat Min Mat Min Combat Hostiles Destroyed 47 | . 10 . 33 4 Guns 22 | . 4 . 16 2 AOE 24 | . 6 . 16 2 Classes Destroyed 11 | . 7 1 2 1 Worker 5 | . 3 . 2 . Builder 1 | . . . 1 . Tunneler 3 | . . 1 2 . Hauler 6 | . 2 . 4 . Recycler 4 | . 1 . 3 . Operator 4 | . 2 . 2 . Watcher 7 | . 3 . 4 . Swarmer 13 | . 3 . 10 . Grunt 21 | . 7 . 14 . Sentry 9 | . . . 9 . Assembled 4 | . . . . 4 Best Kill Streak 7 | . 7 1 7 4 Combat Bots Only 4 | . 3 . 4 4 Max Kills in Single Turn 2 | . 2 1 2 1 Gunslinging 1 | . . . 1 . Exploded 2 | . 2 . 2 1 Melee . | . . . . . Uniques/NPCs Destroyed . | . . . . . Combat | -11 -10 -10 -9 -9 -------- Run | Yrd Mat Min Mat Min Hostile Shots Fired 238 | . 42 1 131 64 Missed 70 | . 11 . 42 17 Hits 168 | . 31 1 89 47 Melee 5 | . . . . 5 Projectile 163 | . 31 1 89 42 Critical Strikes 7 | . 1 . 6 . Damage Taken 2848 | . 398 10 1630 810 Core 417 | . 12 . 205 200 Absorbed by Shields . | . . . . . Regen/Repaired (Parts) 120 | . . . 120 . Core Remaining (%) 97 | 100 . 95 . . Volleys Fired 201 | . 47 . 140 14 Largest 2 | . 2 . 2 1 Hottest 110 | . 40 . 110 65 Shots Fired 269 | . 60 . 195 14 Gun 182 | . 34 . 139 9 Cannon . | . . . . . Launcher 87 | . 26 . 56 5 Special . | . . . . . Kinetic 79 | . 34 . 45 . Thermal 16 | . . . 7 9 Explosive 45 | . 26 . 19 . Electromagnetic 129 | . . . 124 5 Robot Hit Streak 12 | . 6 . 12 5 Robot Miss Streak 7 | . 3 . 5 7 Penetration Max . | . . . . . Secondary Targets 3 | . . . 3 . Max Gunslinging Chain 1 | . . . 1 . Shots Hit Robots 145 | . 30 . 104 11 Core Hits 124 | . 39 . 61 24 Critical Kills . | . . . . . Critical Parts Destroyed 1 | . . . 1 . Critical Strikes 1 | . . . 1 . Smash 1 | . . . 1 . Melee Attacks 2 | . . . 2 . Impact 2 | . . . 2 . Slashing . | . . . . . Piercing . | . . . . . Sneak Attacks . | . . . . . Combat Hostiles . | . . . . . Follow-up Attacks . | . . . . . Damage Inflicted 4677 | . 1371 4 3002 300 Guns 1649 | . 289 . 1224 136 Cannons . | . . . . . Explosions 2960 | . 1082 . 1714 164 Melee 21 | . . . 21 . Ramming 47 | . . 4 43 . Kinetic 618 | . 289 . 329 . Thermal 468 | . 96 . 236 136 Explosive 1905 | . 986 . 919 . Electromagnetic 1618 | . . . 1454 164 Impact 21 | . . . 21 . Slashing . | . . . . . Piercing . | . . . . . Highest Corruption 1 | . . . . 1 Average Corruption 1 | . . . . 1 Corruption Purged . | . . . . . Corruption Blocked . | . . . . . Overload Shots . | . . . . . Overflow Damage 124 | . 34 . 80 10 Projectiles . | . . . . . Explosions 103 | . 34 . 59 10 Melee 21 | . . . 21 . Knockbacks . | . . . . . Impact . | . . . . . Kinetic . | . . . . . Secondary . | . . . . . Self-Inflicted Damage 401 | . 21 . 341 39 Shots 15 | . 2 . 11 2 Rammed 3 | . . . 3 . Targets Rammed 5 | . . 1 4 . Kicked . | . . . . . Crushed 2 | . . 1 1 . Highest Temperature 600 | . 27 . 600 24 Average Temperature 106 | . 9 . 117 7 Received Heat Transfer 721 | . 228 . 453 40 Effects 14 | . . . 14 . Shutdowns 2 | . . . 2 . Energy Bleed 2 | . . . 2 . Interference 2 | . . . 2 . Matter Decay 5 | . . . 5 . Short Circuit 1 | . . . 1 . Damage (core) 2 | . . . 2 . Siege Activations . | . . . . . Martial Activations . | . . . . . Shielding Activations . | . . . . . Robots Disrupted . | . . . . . Combat Hostiles . | . . . . . Robots Corrupted 2 | . . . 2 . Combat Hostiles 1 | . . . 1 . Parts Fried 10 | . . . 10 . Impact Corruptions 1 | . . . 1 . Robots Melted . | . . . . . Combat Hostiles . | . . . . . Parts Melted . | . . . . . Heat Transferred 563 | . 50 . 348 165 Parts Sabotaged . | . . . . . Parts Stolen . | . . . . . Parts Stripped . | . . . . . Power Chain Reactions 10 | . . . 10 . Alert | -11 -10 -10 -9 -9 ------- Run | Yrd Mat Min Mat Min Maximum Alert Level 3 | . 1 . 3 1 Low Security (%) 31 | 100 66 100 17 17 Level 1 26 | . 33 . 26 82 Level 2 31 | . . . 41 . Level 3 10 | . . . 14 . Level 4 . | . . . . . Level 5 . | . . . . . High Security . | . . . . . Max Security . | . . . . . Peak Influence 733 | . 341 124 733 276 Initial 276 | . . 123 46 276 Average 337 | . 139 87 411 244 Influence Increases 2089 | . 525 86 1478 . Destroy 0b10 Robot/C 1020 | . 200 60 760 . Destroy 0b10 Robot/NC 150 | . 55 5 90 . Destroy Leader 296 | . 60 10 226 . Allied During Kill 28 | . . 11 17 . Successful Hack 27 | . . . 27 . Disable Machine 240 | . 105 . 135 . Destroy Structure 283 | . 105 . 178 . Lose Combat Pursuer 45 | . . . 45 . Influence Decreases 1913 | . 208 284 887 534 Entered New Map 701 | . . 194 73 434 Time Decay 966 | . 208 90 648 20 Lost Part 200 | . . . 120 80 Lost Ally 46 | . . . 46 . Squads Dispatched 7 | . 2 . 5 . Investigation 4 | . 1 . 3 . Extermination . | . . . . . Reinforcement 3 | . 1 . 2 . Assault . | . . . . . Garrison . | . . . . . Intercept . | . . . . . Searches Triggered . | . . . . . Construction Impeded . | . . . . . Haulers Reinforced . | . . . . . Active Scanning Responses . | . . . . . Cargo Convoy Interrupts . | . . . . . Stealth | -11 -10 -10 -9 -9 --------- Run | Yrd Mat Min Mat Min Distress Signals 5 | . 1 . 4 . Communications Jammed . | . . . . . Distress Signals . | . . . . . Times Spotted 96 | . 16 3 57 20 Peak Tracking Total 20 | . 3 3 5 20 Tactical Retreats 3 | . . . 2 1 Traps | -11 -10 -10 -9 -9 ------- Run | Yrd Mat Min Mat Min Traps Triggered 3 | . . . 3 . Indirectly 1 | . . . 1 . Trap Hack Attempts . | . . . . . Triggered . | . . . . . Disarmed . | . . . . . Reprogrammed . | . . . . . Reused . | . . . . . Traps Extracted . | . . . . . Installed . | . . . . . Triggered . | . . . . . Machines | -11 -10 -10 -9 -9 ---------- Run | Yrd Mat Min Mat Min Machines Disabled 16 | . 7 . 9 . Max in Single Turn 2 | . 2 . 2 . Machines Repaired . | . . . . . Machines Dismantled . | . . . . . Machines Sabotaged . | . . . . . Overloaded Fab Kills . | . . . . . Hacking | -11 -10 -10 -9 -9 --------- Run | Yrd Mat Min Mat Min Machines Accessed 8 | . 1 . 7 . Terminals 5 | . 1 . 4 . Fabricators . | . . . . . Repair Stations 2 | . . . 2 . Recycling Units . | . . . . . Scanalyzers 1 | . . . 1 . Garrison Access . | . . . . . Total Hacks 23 | . 2 . 21 . Successful 12 | . . . 12 . Failed 11 | . 2 . 9 . Catastrophic 3 | . . . 3 . Database Lockouts . | . . . . . Manual 13 | . 2 . 11 . Terminals 13 | . 2 . 11 . Fabricators . | . . . . . Repair Stations 7 | . . . 7 . Recycling Units . | . . . . . Scanalyzers 3 | . . . 3 . Garrison Access . | . . . . . Terminal Hacks 2 | . . . 2 . Branch Access Points 1 | . . . 1 . Terminal Index 1 | . . . 1 . Fabricator Hacks . | . . . . . Repair Station Hacks 5 | . . . 5 . Scan Component 3 | . . . 3 . Repair 2 | . . . 2 . Recycling Unit Hacks . | . . . . . Scanalyzer 2 | . . . 2 . Insert Component 1 | . . . 1 . Analyze 1 | . . . 1 . Garrison Access Hacks . | . . . . . Unauthorized Hacks 3 | . . . 3 . Terminals 3 | . . . 3 . Botnet 1 | . . . 1 . Operators 2 | . . . 2 . Fabricators . | . . . . . Repair Stations . | . . . . . Recycling Units . | . . . . . Scanalyzers . | . . . . . Garrison Access . | . . . . . Data Cores Recovered . | . . . . . Used . | . . . . . Hacking Detections 7 | . 1 . 6 . Full Trace Events 5 | . 1 . 4 . Feedback Events . | . . . . . Feedback Blocked . | . . . . . Robot Schematics Acquired . | . . . . . Robots Built . | . . . . . Authchips . | . . . . . Time . | . . . . . Total Robot Build Rating . | . . . . . Part Schematics Acquired 1 | . . . 1 . Parts Built . | . . . . . Authchips . | . . . . . Time . | . . . . . Total Part Build Rating . | . . . . . Part Studies Acquired . | . . . . . Parts Repaired 2 | . . . 2 . Time 52 | . . . 52 . Parts Recycled . | . . . . . Recycled Matter . | . . . . . Retrieved Matter . | . . . . . Retrieved Components . | . . . . . Parts Scanalyzed 1 | . . . 1 . Part Schematics Acquired 1 | . . . 1 . Parts Damaged . | . . . . . Bothacking | -11 -10 -10 -9 -9 ------------ Run | Yrd Mat Min Mat Min Used RIF Installer . | . . . . . Robots Hacked . | . . . . . Non-combat . | . . . . . Combat . | . . . . . Robot Hacks Applied . | . . . . . Relay Couplers Released . | . . . . . Fabnet Peak Effective % . | . . . . . Robots Rewired . | . . . . . Allies Hacked . | . . . . . Hacks Repelled . | . . . . . Allies | -11 -10 -10 -9 -9 -------- Run | Yrd Mat Min Mat Min Total Allies 3 | . . 3 . . Largest Group 3 | . . 3 3 . Highest-Rated Group 40 | . . 40 40 . Highest-Rated Ally 16 | . . 16 16 . Total Orders . | . . . . . Ally Attacks 43 | . . 4 39 . Total Damage 487 | . . 59 428 . Kills 8 | . . 3 5 . Allies Corrupted . | . . . . . Allies Melted . | . . . . . Intel | -11 -10 -10 -9 -9 ------- Run | Yrd Mat Min Mat Min Active Infowar (turns) . | . . . . . Robot Analysis Total . | . . . . . Derelict Logs Recovered . | . . . . . Drone Launches . | . . . . . Drone Recoveries . | . . . . . Exploration | -11 -10 -10 -9 -9 ------------- Run | Yrd Mat Min Mat Min Turns Passed 3274 | 69 514 198 2446 47 Spaces Moved 1549 | 32 248 119 1145 5 Core 8 | 8 . . . . Treads 1540 | 24 248 119 1145 4 Legs . | . . . . . Wheels . | . . . . . Hover . | . . . . . Flight 1 | . . . . 1 Fastest Speed 50 | 50 160 160 160 109 Average Speed 167 | 132 160 160 171 213 Slowest Speed 240 | 160 160 160 240 240 Overloaded Moves . | . . . . . Propulsion Burnouts . | . . . . . Robots Hopped . | . . . . . Potential Cave-ins . | . . . . . Cave-ins Triggered . | . . . . . Exploration Rate (%) 36 | 4 47 38 91 3 Regions Visited 4 Branch Regions 2 Pre-discovered Areas . | . . . . . Known Exits Taken 1 | . . . 1 . Unknown Exits Taken 3 | 1 1 1 . . Scrap Searched 1 | . . 1 . . Spaces Dug . | . . . . . Terrain Destroyed 307 | . 112 . 195 . Melee . | . . . . . Projectile . | . . . . . AOE 307 | . 112 . 195 . Terrain Rammed . | . . . . . Walls Destroyed . | . . . . . Machines Disabled . | . . . . . Actions | -11 -10 -10 -9 -9 --------- Run | Yrd Mat Min Mat Min Total 1955 | 60 308 126 1434 27 Wait 96 | 7 7 4 78 . Move 1545 | 31 247 118 1144 5 Hop . | . . . . . Pick Up 47 | 10 4 2 31 . Fast Attach . | . . . . . Attach 38 | 9 1 . 22 6 Detach 3 | 3 . . . . Swap 7 | . 1 1 4 1 Drop 11 | . 1 . 9 1 Fire 201 | . 47 . 140 14 Melee 2 | . . . 2 . Ram . | . . . . . Kick . | . . . . . Crush 5 | . . 1 4 . Escape Stasis . | . . . . . Rewire . | . . . . . Trap . | . . . . . Miscellaneous . | . . . . . Route ------- -11/Scrapyard -10/Materials (discovered 4 exits: *Mat / [*Min x2] / [*Sub]) -10/Mines -9/Materials (discovered 5 exits: [*Mat x3] / *Min / *Sto) -9/Mines History --------- Turn | Location | Event 8 | -11/Scrapyard | Discovered new exit (range 15) 70 | -11/Scrapyard | Entered Materials 315 | -10/Materials | Build established: Mutant 316 | -10/Materials | Discovered new exit (range 15) 372 | -10/Materials | Discovered new exit (range 15) 419 | -10/Materials | Discovered new exit (range 16) 515 | -10/Materials | Discovered new exit (range 14) 584 | -10/Materials | Entered Mines 591 | -10/Mines | Received a Rocket Launcher from a helpful Derelict 725 | -10/Mines | Assisted by bots powering up and referring to "LRC-V3" 771 | -10/Mines | Discovered new exit (range 4) 782 | -10/Mines | Entered Materials 782 | -9/Materials | Accompanied by 3 allies 782 | -9/Materials | Evolved 2 slots: Propulsion x1, Utility x1 1118 | -9/Materials | Discovered new exit (range 8) 1167 | -9/Materials | Lost 3 parts (1n2w) 1493 | -9/Materials | Repaired Lgt. Treads 1521 | -9/Materials | Repaired Lgt. Treads 1750 | -9/Materials | Discovered new exit (range 14) 1907 | -9/Materials | Identified exit to Mines 1907 | -9/Materials | Identified exit to Storage 2117 | -9/Materials | Lost 3 parts (1u2w) 2255 | -9/Materials | Build established: Scavenger-Mutant 2559 | -9/Materials | Discovered new exit (range 12) 2810 | -9/Materials | Core integrity fell below 50% 2838 | -9/Materials | Discovered new exit (range 7) 3228 | -9/Materials | Entered Mines 3234 | -9/Mines | Assembled infested the area 3270 | -9/Mines | Core integrity fell below 20% 3275 | -9/Mines | Destroyed by as-30397 with Assembled Rifle Last Messages --------------- ALERT: Infestation in the mines, dispatching Demolisher response squad. [Achievement: Hunted] as-92798 destroyed. Destroyed Asb. Hover Unit. as-42501 destroyed. EMP Blaster destroyed. Hrd. Light Armor Plating destroyed. as-74758 destroyed. Broken Lgt. Treads destroyed. Lgt. Treads destroyed. as-07360 destroyed. as-99529 destroyed. Imp. Heat Sink destroyed. Deuterium Engine destroyed. Spread Laser destroyed. Lgt. Treads destroyed. as-56907 suffers critical hit (Destroy). as-56907 destroyed. Dropped Lrg. Storage Unit. Map ----- +----------------------------------------------------+ | | | | | | | | | | | | | | | | | | | | | | | | | | | | | ?????????????????????????????????????????????????? | | ?????????????????????????????????????????????????? | | ?????????????????????????????????????????????????? | | ?????????????????????????????????????????????????? | | ?????????????????????????????????????????????????? | | ?????????????????????????????????????????????????? | | ?????????????????????????????????????????????????? | | ?????????????????????????????????????????????????? | | ????????????????????????######???????????????????? | | ??????????????????####### ## ### #????????????? | | ???????????????####a aa% #????????????? | | ???????? % a a %a%!@ #??????????????????? | | ????????????# aaa a ### ##??????????????????? | | ????????????# ##??????#######???????????????????? | | ?????????????????????????????????????????????????? | | ?????????????????????????????????????????????????? | | ?????????????????????????????????????????????????? | | ?????????????????????????????????????????????????? | | ?????????????????????????????????????????????????? | | ?????????????????????????????????????????????????? | | ?????????????????????????????????????????????????? | | ?????????????????????????????????????????????????? | | ?????????????????????????????????????????????????? | | ?????????????????????????????????????????????????? | | ?????????????????????????????????????????????????? | | ?????????????????????????????????????????????????? | | ?????????????????????????????????????????????????? | | ?????????????????????????????????????????????????? | | ?????????????????????????????????????????????????? | | ?????????????????????????????????????????????????? | | ?????????????????????????????????????????????????? | | ?????????????????????????????????????????????????? | | ?????????????????????????????????????????????????? | | ?????????????????????????????????????????????????? | | ?????????????????????????????????????????????????? | | ?????????????????????????????????????????????????? | +----------------------------------------------------+ Best States ------------- Heat Dissipation 42 Energy Generation 14 Energy Capacity 275 Matter Stores 300 Matter Capacity 300 Sight Range 16 Terrain Scan Density 10 Armor Coverage 300 Evasion (%) 40 Recoil Reduction 3 Item Schematics ----------------- VTOL Module | -9/Materials | Scanalyzed Robot Schematics ------------------ None Fabricated ------------ Nothing Repaired ---------- Lgt. Treads | 48% | -9/Materials Lgt. Treads | 65% | -9/Materials Studied --------- None Alien Tech Used ----------------- None Achievements -------------- Hunted Challenges ------------ None Game ------ Seed HypertargetingLaunchFragment Manual? 0 Play Time 00:26:12 Cumulative 16.5 hours Start 2026.01.24 @ 10:36:14 End 2026.01.24 @ 11:01:47 Sessions 1 Manual Loads 0 Difficulty Rogue Special Mode None Game No. 27 Rogue 27 Adventurer 0 Explorer 0 Win Type - Total 0 Types 0/0/0/0/0/0/0/0/0/0 Lore% 13 Gallery% 20 Achievement% 19 Wizard Run 0 Options --------- Layout 2 ASCII 0 Keyboard 0 Movement Mouse Keybinds 0 Fullscreen 1 Font 24/Smallcaps Map View 50x44 Zoom Use 0% Tactical HUD 0 Map Filters NONE Filters NONE Steam 1 RUN: 3d4590f1-27f5-4990-9bef-97ca7fd668ce